Workbook

Sheet Дата
A1: № решения | B1: Дата | C1: Дата решения | D1: Дата вступления решения в законную силу | E1: Дата подачи заявления | F1: 12 | G1: 13 | H1: 14 | I1: Выплата з/п за месяц | J1: Выплата з/п за год
A2: 6 | B2: 2017-06-24 | C2: 2017-06-25 | D2: 2017-06-26 | E2: 2017-04-30 | F2: =TEXT(B2,"[$-FC19]ДД ММММ ГГГГ") -> 24 июня 2017 | G2: =TEXT(C2,"[$-FC19]ДД ММММ ГГГГ") -> 25 июня 2017 | H2: =C2 -> 2017-06-25 | I2: май | J2: 2017
G3: =TEXT(C2,"[$-FC19]ДД ММММ ГГГГ")&" года" -> 25 июня 2017 года
G4: =TEXT(E2,"[$-FC19]ДД ММММ ГГГГ") -> 30 апреля 2017
G5: =TEXT(E2,"[$-FC19]ДД ММММ ГГГГ")&" года" -> 30 апреля 2017 года

Sheet Таблица
A1: № п/п | B1: Ф.И.О. | C1: Результат | D1: Должность | E1: Дата рождения | F1: Место рождения | G1: Паспорт | H1: Адрес | I1: ИНН | J1: Лицевой счёт | K1: Выплата за месяц | L1: Выплата за месяц прописью
A2: =MAX($A$1:A1)+1 -> 1 | B2: Иванов Иван Иванович | C2: Иванова Ивана Ивановича | D2: Главный инженер | E2: 1961-10-21 | F2: с.Чужое Энского района | G2: 98 01 № 123456 выдан Отделением УФМС России по Энской Республике в Энском районе 15 ноября 2007 г. | H2: Энская Республика, г. Энск, ул. Ленина, 1, кв. 2 | I2: 202201234567 | J2: 00000000000000000001 | K2: 9800 | L2: =MSumProp(K2) -> (Девять тысяч восемьсот) рублей 00 коп.
B3: Сидоров Сидор Сидорович | C3: Сидорова Сидора Сидоровича | D3: Электросварщик ручной сварки | E3: 1962-11-22 | F3: г.Москва | G3: 98 02 № 234567 выдан Отделением УФМС России по Энской Республике в Энском районе 16 ноября 2007 г. | H3: Энская Республика, г. Энск, ул. Ульянова, 1, кв. 3 | I3: 202201234568 | J3: 00000000000000000002 | K3: 6500 | L3: =MSumProp(K3) -> (Шесть тысяч пятьсот) рублей 00 коп.
A4: 3 | B4: Петров Пётр Петрович | C4: Петрова Пётра Петровича | D4: Инженер-сметчик | E4: 1963-12-23 | F4: г.Энск Энской АССР | G4: 98 03 № 345678 выдан Отделением УФМС России по Энской Республике в Энском районе 17 ноября 2007 г. | H4: Энская Республика, г. Энск, ул. Ильича, 1, кв. 4 | I4: 202201234569 | J4: 00000000000000000003 | K4: 7200 | L4: (Семь тысяч двести) рублей 00 коп.
A5: 2 | B5: Николаев Николай Николаевич | C5: Николаева Николая Николаевича | D5: Техник | L5: (Ноль) рублей 00 коп.
A6: =MAX($A$1:A5)+1 -> 4 | B6: Борисов Борис Борисович | C6: Борисова Бориса Борисовича | L6: (Ноль) рублей 00 коп.
A7: =MAX($A$1:A6)+1 -> 5 | L7: (Ноль) рублей 00 коп.
A8: =MAX($A$1:A7)+1 -> 6 | L8: (Ноль) рублей 00 коп.
A9: =MAX($A$1:A8)+1 -> 7 | L9: (Ноль) рублей 00 коп.
A10: =MAX($A$1:A9)+1 -> 8 | L10: (Ноль) рублей 00 коп.
A11: =MAX($A$1:A10)+1 -> 9 | L11: (Ноль) рублей 00 коп.
A12: =MAX($A$1:A11)+1 -> 10 | L12: (Ноль) рублей 00 коп.
A13: =MAX($A$1:A12)+1 -> 11 | L13: (Ноль) рублей 00 коп.
A14: =MAX($A$1:A13)+1 -> 12 | L14: (Ноль) рублей 00 коп.
A15: =MAX($A$1:A14)+1 -> 13 | L15: (Ноль) рублей 00 коп.
A16: =MAX($A$1:A15)+1 -> 14 | L16: (Ноль) рублей 00 коп.
A17: =MAX($A$1:A16)+1 -> 15 | L17: (Ноль) рублей 00 коп.
A18: =MAX($A$1:A17)+1 -> 16 | L18: (Ноль) рублей 00 коп.
A19: =MAX($A$1:A18)+1 -> 17 | L19: (Ноль) рублей 00 коп.
A20: =MAX($A$1:A19)+1 -> 18 | L20: (Ноль) рублей 00 коп.
A21: =MAX($A$1:A20)+1 -> 19 | L21: (Ноль) рублей 00 коп.
A22: =MAX($A$1:A21)+1 -> 20 | L22: (Ноль) рублей 00 коп.
A23: =MAX($A$1:A22)+1 -> 21 | L23: (Ноль) рублей 00 коп.
A24: =MAX($A$1:A23)+1 -> 22 | L24: (Ноль) рублей 00 коп.
A25: =MAX($A$1:A24)+1 -> 23 | L25: (Ноль) рублей 00 коп.
A26: =MAX($A$1:A25)+1 -> 24 | L26: (Ноль) рублей 00 коп.
A27: =MAX($A$1:A26)+1 -> 25 | L27: (Ноль) рублей 00 коп.
A28: =MAX($A$1:A27)+1 -> 26 | L28: (Ноль) рублей 00 коп.
A29: =MAX($A$1:A28)+1 -> 27 | L29: (Ноль) рублей 00 коп.
A30: =MAX($A$1:A29)+1 -> 28 | L30: (Ноль) рублей 00 коп.
A31: =MAX($A$1:A30)+1 -> 29 | L31: (Ноль) рублей 00 коп.
A32: =MAX($A$1:A31)+1 -> 30 | L32: (Ноль) рублей 00 коп.
A33: =MAX($A$1:A32)+1 -> 31 | L33: (Ноль) рублей 00 коп.
A34: =MAX($A$1:A33)+1 -> 32 | L34: (Ноль) рублей 00 коп.
A35: =MAX($A$1:A34)+1 -> 33 | L35: (Ноль) рублей 00 коп.
A36: =MAX($A$1:A35)+1 -> 34 | L36: (Ноль) рублей 00 коп.
A37: =MAX($A$1:A36)+1 -> 35 | L37: (Ноль) рублей 00 коп.
A38: =MAX($A$1:A37)+1 -> 36 | L38: (Ноль) рублей 00 коп.
A39: =MAX($A$1:A38)+1 -> 37 | L39: (Ноль) рублей 00 коп.
A40: =MAX($A$1:A39)+1 -> 38 | L40: (Ноль) рублей 00 коп.
A41: =MAX($A$1:A40)+1 -> 39 | L41: (Ноль) рублей 00 коп.
A42: =MAX($A$1:A41)+1 -> 40 | L42: (Ноль) рублей 00 коп.
A43: =MAX($A$1:A42)+1 -> 41 | L43: (Ноль) рублей 00 коп.
A44: =MAX($A$1:A43)+1 -> 42 | L44: (Ноль) рублей 00 коп.
A45: =MAX($A$1:A44)+1 -> 43 | L45: (Ноль) рублей 00 коп.
A46: =MAX($A$1:A45)+1 -> 44 | L46: (Ноль) рублей 00 коп.
A47: =MAX($A$1:A46)+1 -> 45 | L47: (Ноль) рублей 00 коп.
A48: =MAX($A$1:A47)+1 -> 46 | L48: (Ноль) рублей 00 коп.
A49: =MAX($A$1:A48)+1 -> 47 | L49: (Ноль) рублей 00 коп.
A50: =MAX($A$1:A49)+1 -> 48 | L50: (Ноль) рублей 00 коп.
A51: =MAX($A$1:A50)+1 -> 49 | L51: (Ноль) рублей 00 коп.
A52: =MAX($A$1:A51)+1 -> 50 | L52: (Ноль) рублей 00 коп.
A53: =MAX($A$1:A52)+1 -> 51 | L53: (Ноль) рублей 00 коп.
A54: =MAX($A$1:A53)+1 -> 52 | L54: (Ноль) рублей 00 коп.
A55: =MAX($A$1:A54)+1 -> 53 | L55: (Ноль) рублей 00 коп.
A56: =MAX($A$1:A55)+1 -> 54 | L56: (Ноль) рублей 00 коп.
A57: =MAX($A$1:A56)+1 -> 55 | L57: (Ноль) рублей 00 коп.
A58: =MAX($A$1:A57)+1 -> 56 | L58: (Ноль) рублей 00 коп.
A59: =MAX($A$1:A58)+1 -> 57 | L59: (Ноль) рублей 00 коп.
A60: =MAX($A$1:A59)+1 -> 58 | L60: (Ноль) рублей 00 коп.
A61: =MAX($A$1:A60)+1 -> 59 | L61: (Ноль) рублей 00 коп.
A62: =MAX($A$1:A61)+1 -> 60 | L62: (Ноль) рублей 00 коп.
A63: =MAX($A$1:A62)+1 -> 61 | L63: (Ноль) рублей 00 коп.
A64: =MAX($A$1:A63)+1 -> 62 | L64: =MSumProp(K64) -> (Ноль) рублей 00 коп.
A65: =MAX($A$1:A64)+1 -> 63 | L65: (Ноль) рублей 00 коп.
A66: =MAX($A$1:A65)+1 -> 64 | L66: (Ноль) рублей 00 коп.
A67: =MAX($A$1:A66)+1 -> 65 | L67: (Ноль) рублей 00 коп.
A68: =MAX($A$1:A67)+1 -> 66 | L68: (Ноль) рублей 00 коп.
A69: =MAX($A$1:A68)+1 -> 67 | L69: (Ноль) рублей 00 коп.
A70: =MAX($A$1:A69)+1 -> 68 | L70: (Ноль) рублей 00 коп.
A71: =MAX($A$1:A70)+1 -> 69 | L71: (Ноль) рублей 00 коп.
A72: =MAX($A$1:A71)+1 -> 70 | L72: (Ноль) рублей 00 коп.
A73: =MAX($A$1:A72)+1 -> 71 | L73: (Ноль) рублей 00 коп.
A74: =MAX($A$1:A73)+1 -> 72 | L74: (Ноль) рублей 00 коп.
A75: =MAX($A$1:A74)+1 -> 73 | L75: (Ноль) рублей 00 коп.
A76: =MAX($A$1:A75)+1 -> 74 | L76: (Ноль) рублей 00 коп.
A77: =MAX($A$1:A76)+1 -> 75 | L77: (Ноль) рублей 00 коп.
A78: =MAX($A$1:A77)+1 -> 76 | L78: (Ноль) рублей 00 коп.
A79: =MAX($A$1:A78)+1 -> 77 | L79: (Ноль) рублей 00 коп.
A80: =MAX($A$1:A79)+1 -> 78 | L80: (Ноль) рублей 00 коп.
A81: =MAX($A$1:A80)+1 -> 79 | L81: (Ноль) рублей 00 коп.
A82: =MAX($A$1:A81)+1 -> 80 | L82: (Ноль) рублей 00 коп.
A83: =MAX($A$1:A82)+1 -> 81 | L83: (Ноль) рублей 00 коп.
A84: =MAX($A$1:A83)+1 -> 82 | L84: (Ноль) рублей 00 коп.
A85: =MAX($A$1:A84)+1 -> 83 | L85: (Ноль) рублей 00 коп.
A86: =MAX($A$1:A85)+1 -> 84 | L86: (Ноль) рублей 00 коп.
A87: =MAX($A$1:A86)+1 -> 85 | L87: (Ноль) рублей 00 коп.
A88: =MAX($A$1:A87)+1 -> 86 | L88: (Ноль) рублей 00 коп.
A89: =MAX($A$1:A88)+1 -> 87 | L89: (Ноль) рублей 00 коп.
A90: =MAX($A$1:A89)+1 -> 88 | L90: (Ноль) рублей 00 коп.
A91: =MAX($A$1:A90)+1 -> 89 | L91: (Ноль) рублей 00 коп.
A92: =MAX($A$1:A91)+1 -> 90 | L92: (Ноль) рублей 00 коп.
A93: =MAX($A$1:A92)+1 -> 91 | L93: (Ноль) рублей 00 коп.
A94: =MAX($A$1:A93)+1 -> 92 | L94: (Ноль) рублей 00 коп.
A95: =MAX($A$1:A94)+1 -> 93 | L95: (Ноль) рублей 00 коп.
A96: =MAX($A$1:A95)+1 -> 94 | L96: (Ноль) рублей 00 коп.
A97: =MAX($A$1:A96)+1 -> 95 | L97: (Ноль) рублей 00 коп.
A98: =MAX($A$1:A97)+1 -> 96 | L98: (Ноль) рублей 00 коп.
A99: =MAX($A$1:A98)+1 -> 97 | L99: (Ноль) рублей 00 коп.
A100: =MAX($A$1:A99)+1 -> 98 | L100: (Ноль) рублей 00 коп.
A101: =MAX($A$1:A100)+1 -> 99 | L101: (Ноль) рублей 00 коп.
A102: =MAX($A$1:A101)+1 -> 100 | L102: (Ноль) рублей 00 коп.
A103: =MAX($A$1:A102)+1 -> 101 | L103: (Ноль) рублей 00 коп.
A104: =MAX($A$1:A103)+1 -> 102 | L104: (Ноль) рублей 00 коп.
A105: =MAX($A$1:A104)+1 -> 103 | L105: (Ноль) рублей 00 коп.
A106: =MAX($A$1:A105)+1 -> 104 | L106: (Ноль) рублей 00 коп.
A107: =MAX($A$1:A106)+1 -> 105 | L107: (Ноль) рублей 00 коп.
A108: =MAX($A$1:A107)+1 -> 106 | L108: (Ноль) рублей 00 коп.
A109: =MAX($A$1:A108)+1 -> 107 | L109: (Ноль) рублей 00 коп.
A110: =MAX($A$1:A109)+1 -> 108 | L110: (Ноль) рублей 00 коп.
A111: =MAX($A$1:A110)+1 -> 109 | L111: (Ноль) рублей 00 коп.
A112: =MAX($A$1:A111)+1 -> 110 | L112: (Ноль) рублей 00 коп.
A113: =MAX($A$1:A112)+1 -> 111 | L113: (Ноль) рублей 00 коп.
A114: =MAX($A$1:A113)+1 -> 112 | L114: (Ноль) рублей 00 коп.
A115: =MAX($A$1:A114)+1 -> 113 | L115: (Ноль) рублей 00 коп.
A116: =MAX($A$1:A115)+1 -> 114 | L116: (Ноль) рублей 00 коп.
A117: =MAX($A$1:A116)+1 -> 115 | L117: (Ноль) рублей 00 коп.
A118: =MAX($A$1:A117)+1 -> 116 | L118: (Ноль) рублей 00 коп.
A119: =MAX($A$1:A118)+1 -> 117 | L119: (Ноль) рублей 00 коп.
A120: =MAX($A$1:A119)+1 -> 118 | L120: (Ноль) рублей 00 коп.
A121: =MAX($A$1:A120)+1 -> 119 | L121: (Ноль) рублей 00 коп.
A122: =MAX($A$1:A121)+1 -> 120 | L122: =MSumProp(K122) -> (Ноль) рублей 00 коп.
A123: =MAX($A$1:A122)+1 -> 121 | L123: (Ноль) рублей 00 коп.
A124: =MAX($A$1:A123)+1 -> 122 | L124: (Ноль) рублей 00 коп.
A125: =MAX($A$1:A124)+1 -> 123 | L125: (Ноль) рублей 00 коп.
A126: =MAX($A$1:A125)+1 -> 124 | L126: (Ноль) рублей 00 коп.
A127: =MAX($A$1:A126)+1 -> 125 | L127: (Ноль) рублей 00 коп.
A128: =MAX($A$1:A127)+1 -> 126 | L128: (Ноль) рублей 00 коп.
A129: =MAX($A$1:A128)+1 -> 127 | L129: (Ноль) рублей 00 коп.
A130: =MAX($A$1:A129)+1 -> 128 | L130: (Ноль) рублей 00 коп.
A131: =MAX($A$1:A130)+1 -> 129 | L131: (Ноль) рублей 00 коп.
A132: =MAX($A$1:A131)+1 -> 130 | L132: (Ноль) рублей 00 коп.
A133: =MAX($A$1:A132)+1 -> 131 | L133: (Ноль) рублей 00 коп.
A134: =MAX($A$1:A133)+1 -> 132 | L134: (Ноль) рублей 00 коп.
A135: =MAX($A$1:A134)+1 -> 133 | L135: (Ноль) рублей 00 коп.
A136: =MAX($A$1:A135)+1 -> 134 | L136: (Ноль) рублей 00 коп.
A137: =MAX($A$1:A136)+1 -> 135 | L137: (Ноль) рублей 00 коп.
A138: =MAX($A$1:A137)+1 -> 136 | L138: (Ноль) рублей 00 коп.
A139: =MAX($A$1:A138)+1 -> 137 | L139: (Ноль) рублей 00 коп.
A140: =MAX($A$1:A139)+1 -> 138 | L140: (Ноль) рублей 00 коп.
A141: =MAX($A$1:A140)+1 -> 139 | L141: (Ноль) рублей 00 коп.
A142: =MAX($A$1:A141)+1 -> 140 | L142: (Ноль) рублей 00 коп.
A143: =MAX($A$1:A142)+1 -> 141 | L143: (Ноль) рублей 00 коп.
A144: =MAX($A$1:A143)+1 -> 142 | L144: (Ноль) рублей 00 коп.
A145: =MAX($A$1:A144)+1 -> 143 | L145: (Ноль) рублей 00 коп.
A146: =MAX($A$1:A145)+1 -> 144 | L146: (Ноль) рублей 00 коп.
A147: =MAX($A$1:A146)+1 -> 145 | L147: (Ноль) рублей 00 коп.
A148: =MAX($A$1:A147)+1 -> 146 | L148: (Ноль) рублей 00 коп.
A149: =MAX($A$1:A148)+1 -> 147 | L149: (Ноль) рублей 00 коп.
A150: =MAX($A$1:A149)+1 -> 148 | L150: (Ноль) рублей 00 коп.
A151: =MAX($A$1:A150)+1 -> 149 | L151: (Ноль) рублей 00 коп.
A152: =MAX($A$1:A151)+1 -> 150 | L152: (Ноль) рублей 00 коп.
A153: =MAX($A$1:A152)+1 -> 151 | L153: (Ноль) рублей 00 коп.
A154: =MAX($A$1:A153)+1 -> 152 | L154: (Ноль) рублей 00 коп.
A155: =MAX($A$1:A154)+1 -> 153 | L155: (Ноль) рублей 00 коп.
A156: =MAX($A$1:A155)+1 -> 154 | L156: (Ноль) рублей 00 коп.
A157: =MAX($A$1:A156)+1 -> 155 | L157: (Ноль) рублей 00 коп.
A158: =MAX($A$1:A157)+1 -> 156 | L158: (Ноль) рублей 00 коп.
A159: =MAX($A$1:A158)+1 -> 157 | L159: (Ноль) рублей 00 коп.
A160: =MAX($A$1:A159)+1 -> 158 | L160: (Ноль) рублей 00 коп.
A161: =MAX($A$1:A160)+1 -> 159 | L161: (Ноль) рублей 00 коп.
A162: =MAX($A$1:A161)+1 -> 160 | L162: (Ноль) рублей 00 коп.
A163: =MAX($A$1:A162)+1 -> 161 | L163: (Ноль) рублей 00 коп.
A164: =MAX($A$1:A163)+1 -> 162 | L164: (Ноль) рублей 00 коп.
A165: =MAX($A$1:A164)+1 -> 163 | L165: (Ноль) рублей 00 коп.
A166: =MAX($A$1:A165)+1 -> 164 | L166: (Ноль) рублей 00 коп.
A167: =MAX($A$1:A166)+1 -> 165 | L167: (Ноль) рублей 00 коп.
A168: =MAX($A$1:A167)+1 -> 166 | L168: (Ноль) рублей 00 коп.
A169: =MAX($A$1:A168)+1 -> 167 | L169: (Ноль) рублей 00 коп.
A170: =MAX($A$1:A169)+1 -> 168 | L170: (Ноль) рублей 00 коп.
A171: =MAX($A$1:A170)+1 -> 169 | L171: (Ноль) рублей 00 коп.
A172: =MAX($A$1:A171)+1 -> 170 | L172: (Ноль) рублей 00 коп.
A173: =MAX($A$1:A172)+1 -> 171 | L173: (Ноль) рублей 00 коп.
A174: =MAX($A$1:A173)+1 -> 172 | L174: (Ноль) рублей 00 коп.
A175: =MAX($A$1:A174)+1 -> 173 | L175: (Ноль) рублей 00 коп.
A176: =MAX($A$1:A175)+1 -> 174 | L176: (Ноль) рублей 00 коп.
A177: =MAX($A$1:A176)+1 -> 175 | L177: (Ноль) рублей 00 коп.
A178: =MAX($A$1:A177)+1 -> 176 | L178: (Ноль) рублей 00 коп.
A179: =MAX($A$1:A178)+1 -> 177 | L179: (Ноль) рублей 00 коп.
A180: =MAX($A$1:A179)+1 -> 178 | L180: (Ноль) рублей 00 коп.
A181: =MAX($A$1:A180)+1 -> 179 | L181: (Ноль) рублей 00 коп.
A182: =MAX($A$1:A181)+1 -> 180 | L182: (Ноль) рублей 00 коп.
A183: =MAX($A$1:A182)+1 -> 181 | L183: (Ноль) рублей 00 коп.
A184: =MAX($A$1:A183)+1 -> 182 | L184: (Ноль) рублей 00 коп.
A185: =MAX($A$1:A184)+1 -> 183 | L185: (Ноль) рублей 00 коп.
A186: =MAX($A$1:A185)+1 -> 184 | L186: =MSumProp(K186) -> (Ноль) рублей 00 коп.
A187: =MAX($A$1:A186)+1 -> 185 | L187: (Ноль) рублей 00 коп.
A188: =MAX($A$1:A187)+1 -> 186 | L188: (Ноль) рублей 00 коп.
A189: =MAX($A$1:A188)+1 -> 187 | L189: (Ноль) рублей 00 коп.
A190: =MAX($A$1:A189)+1 -> 188 | L190: (Ноль) рублей 00 коп.
A191: =MAX($A$1:A190)+1 -> 189 | L191: (Ноль) рублей 00 коп.
A192: =MAX($A$1:A191)+1 -> 190 | L192: (Ноль) рублей 00 коп.
A193: =MAX($A$1:A192)+1 -> 191 | L193: (Ноль) рублей 00 коп.
A194: =MAX($A$1:A193)+1 -> 192 | L194: (Ноль) рублей 00 коп.
A195: =MAX($A$1:A194)+1 -> 193 | L195: (Ноль) рублей 00 коп.
A196: =MAX($A$1:A195)+1 -> 194 | L196: (Ноль) рублей 00 коп.
A197: =MAX($A$1:A196)+1 -> 195 | L197: (Ноль) рублей 00 коп.
A198: =MAX($A$1:A197)+1 -> 196 | L198: (Ноль) рублей 00 коп.
A199: =MAX($A$1:A198)+1 -> 197 | L199: (Ноль) рублей 00 коп.
A200: =MAX($A$1:A199)+1 -> 198 | L200: (Ноль) рублей 00 коп.
... 1 more rows

Sheet Таблица КТС
B1: =SUM(D22:D132) -> 26800 | C1: =MSumProp(B1) -> (Двадцать шесть тысяч восемьсот) рублей 00 коп.
A2: Состав
A3: комиссии по трудовым спорам
A4: Общества с ограниченной ответственностью «Управление»
A5: =Дата!C2 -> 2017-06-25
A6: комиссия по трудовым спорам в составе:
A7: Председателя КТС: Антоновой Антонины Петровны
A8: Зам. председателя КТС: Кузьмина Карнила Карниловича
A9: Членов КТС: - Кузьминой Г.А.
B10: - Курочкиной О.В. - Мышенкова М.В. - Быстрякова С.Б. - Макарова Р.А. - Сульдиной В.Д. - Модина В.Н.
A11: Секретаря КТС: Гашуткиной Г.И.
A12: =Данные!C2&Дата!G4&Данные!C3&Дата!I2&" "&Дата!J2&" г." -> Рассмотрев на заседании заявления работников Общества с ограниченной ответственностью «Управление» от 30 апреля 2017 о невыплате заработной платы за май 2017 г.
A13: УСТАНОВИЛА
A14: =Данные!C4&Дата!I2&" месяц "&Дата!J2&" г. на общую сумму "&FLOOR(B1,1)&" "&TEXT(C1,"") -> Заявители – работники Общества с ограниченной ответственностью «Управление» просят взыскать с администрации Общества с ограниченной ответственностью «Управление» заработную плату за май месяц 2017 г. на общую сумму 26800 (Двадцать шесть тысяч восемьсот) рублей 00 коп.
A15: =Данные!C5&Дата!G5&Данные!C6 -> Факт невыплаты заработной платы подтверждается поданными заявлениями работников от 30 апреля 2017 года, а ее сумма прилагаемыми справками о причитающейся заработной плате.
A16: =Данные!C7 -> Выслушав стороны и исследовав документы, комиссия находит, что требования заявителей подлежать удовлетворению, так как в соответствии со ст. 136 Трудового кодекса РФ выплата заработной платы должна производиться не реже, чем каждые полмесяца.
A17: =Данные!C8 -> На основании изложенного, комиссия приняла единогласное решение удовлетворить требования заявителей о выплате заработной платы, и руководствуясь ст.ст. 383-395 Трудового кодекса РФ
A18: РЕШИЛА
A19: =Данные!C9&" "&FLOOR(B1,1)&" "&TEXT(C1,"")&" за "&Дата!I2&" месяц "&Дата!J2&" г." -> Взыскать с Общества с ограниченной ответственностью «Управление» в пользу работников ООО «Управление» заработную плату на общую сумму 26800 (Двадцать шесть тысяч восемьсот) рублей 00 коп. за май месяц 2017 г.
A20: СПИСОК
A21: № п/п | B21: Ф.И.О. | C21: Должность | D21: Сумма руб.
A22: 1 | B22: =VLOOKUP(A22,Таблица!$A$2:$L$201,2) -> Иванов Иван Иванович | C22: =VLOOKUP(A22,Таблица!$A$2:$L$201,4) -> Главный инженер | D22: =VLOOKUP(A22,Таблица!$A$2:$L$201,11) -> 9800
A23: 2 | B23: =VLOOKUP(A23,Таблица!$A$2:$L$201,2) -> Иванов Иван Иванович | C23: =VLOOKUP(A23,Таблица!$A$2:$L$201,4) -> Главный инженер | D23: =VLOOKUP(A23,Таблица!$A$2:$L$201,11) -> 9800
A24: 3 | B24: =VLOOKUP(A24,Таблица!$A$2:$L$201,2) -> Петров Пётр Петрович | C24: =VLOOKUP(A24,Таблица!$A$2:$L$201,4) -> Инженер-сметчик | D24: =VLOOKUP(A24,Таблица!$A$2:$L$201,11) -> 7200
A25: 4 | B25: =VLOOKUP(A25,Таблица!$A$2:$L$201,2) -> Борисов Борис Борисович | C25: =VLOOKUP(A25,Таблица!$A$2:$L$201,4) -> 0 | D25: =VLOOKUP(A25,Таблица!$A$2:$L$201,11) -> 0
A26: 5 | B26: =VLOOKUP(A26,Таблица!$A$2:$L$201,2) -> 0 | C26: =VLOOKUP(A26,Таблица!$A$2:$L$201,4) -> 0 | D26: =VLOOKUP(A26,Таблица!$A$2:$L$201,11) -> 0
A27: 6 | B27: =VLOOKUP(A27,Таблица!$A$2:$L$201,2) -> 0 | C27: =VLOOKUP(A27,Таблица!$A$2:$L$201,4) -> 0 | D27: =VLOOKUP(A27,Таблица!$A$2:$L$201,11) -> 0
A28: 7 | B28: =VLOOKUP(A28,Таблица!$A$2:$L$201,2) -> 0 | C28: =VLOOKUP(A28,Таблица!$A$2:$L$201,4) -> 0 | D28: =VLOOKUP(A28,Таблица!$A$2:$L$201,11) -> 0
A29: 8 | B29: =VLOOKUP(A29,Таблица!$A$2:$L$201,2) -> 0 | C29: =VLOOKUP(A29,Таблица!$A$2:$L$201,4) -> 0 | D29: =VLOOKUP(A29,Таблица!$A$2:$L$201,11) -> 0
A30: 9 | B30: =VLOOKUP(A30,Таблица!$A$2:$L$201,2) -> 0 | C30: =VLOOKUP(A30,Таблица!$A$2:$L$201,4) -> 0 | D30: =VLOOKUP(A30,Таблица!$A$2:$L$201,11) -> 0
A31: 10 | B31: =VLOOKUP(A31,Таблица!$A$2:$L$201,2) -> 0 | C31: =VLOOKUP(A31,Таблица!$A$2:$L$201,4) -> 0 | D31: =VLOOKUP(A31,Таблица!$A$2:$L$201,11) -> 0
A32: 11 | B32: =VLOOKUP(A32,Таблица!$A$2:$L$201,2) -> 0 | C32: =VLOOKUP(A32,Таблица!$A$2:$L$201,4) -> 0 | D32: =VLOOKUP(A32,Таблица!$A$2:$L$201,11) -> 0
A33: 12 | B33: =VLOOKUP(A33,Таблица!$A$2:$L$201,2) -> 0 | C33: =VLOOKUP(A33,Таблица!$A$2:$L$201,4) -> 0 | D33: =VLOOKUP(A33,Таблица!$A$2:$L$201,11) -> 0
A34: 13 | B34: =VLOOKUP(A34,Таблица!$A$2:$L$201,2) -> 0 | C34: =VLOOKUP(A34,Таблица!$A$2:$L$201,4) -> 0 | D34: =VLOOKUP(A34,Таблица!$A$2:$L$201,11) -> 0
A35: 14 | B35: =VLOOKUP(A35,Таблица!$A$2:$L$201,2) -> 0 | C35: =VLOOKUP(A35,Таблица!$A$2:$L$201,4) -> 0 | D35: =VLOOKUP(A35,Таблица!$A$2:$L$201,11) -> 0
A36: 15 | B36: =VLOOKUP(A36,Таблица!$A$2:$L$201,2) -> 0 | C36: =VLOOKUP(A36,Таблица!$A$2:$L$201,4) -> 0 | D36: =VLOOKUP(A36,Таблица!$A$2:$L$201,11) -> 0
A37: 16 | B37: =VLOOKUP(A37,Таблица!$A$2:$L$201,2) -> 0 | C37: =VLOOKUP(A37,Таблица!$A$2:$L$201,4) -> 0 | D37: =VLOOKUP(A37,Таблица!$A$2:$L$201,11) -> 0
A38: 17 | B38: =VLOOKUP(A38,Таблица!$A$2:$L$201,2) -> 0 | C38: =VLOOKUP(A38,Таблица!$A$2:$L$201,4) -> 0 | D38: =VLOOKUP(A38,Таблица!$A$2:$L$201,11) -> 0
A39: 18 | B39: =VLOOKUP(A39,Таблица!$A$2:$L$201,2) -> 0 | C39: =VLOOKUP(A39,Таблица!$A$2:$L$201,4) -> 0 | D39: =VLOOKUP(A39,Таблица!$A$2:$L$201,11) -> 0
A40: 19 | B40: =VLOOKUP(A40,Таблица!$A$2:$L$201,2) -> 0 | C40: =VLOOKUP(A40,Таблица!$A$2:$L$201,4) -> 0 | D40: =VLOOKUP(A40,Таблица!$A$2:$L$201,11) -> 0
A41: 20 | B41: =VLOOKUP(A41,Таблица!$A$2:$L$201,2) -> 0 | C41: =VLOOKUP(A41,Таблица!$A$2:$L$201,4) -> 0 | D41: =VLOOKUP(A41,Таблица!$A$2:$L$201,11) -> 0
A42: 21 | B42: =VLOOKUP(A42,Таблица!$A$2:$L$201,2) -> 0 | C42: =VLOOKUP(A42,Таблица!$A$2:$L$201,4) -> 0 | D42: =VLOOKUP(A42,Таблица!$A$2:$L$201,11) -> 0
A43: 22 | B43: =VLOOKUP(A43,Таблица!$A$2:$L$201,2) -> 0 | C43: =VLOOKUP(A43,Таблица!$A$2:$L$201,4) -> 0 | D43: =VLOOKUP(A43,Таблица!$A$2:$L$201,11) -> 0
A44: 23 | B44: =VLOOKUP(A44,Таблица!$A$2:$L$201,2) -> 0 | C44: =VLOOKUP(A44,Таблица!$A$2:$L$201,4) -> 0 | D44: =VLOOKUP(A44,Таблица!$A$2:$L$201,11) -> 0
A45: 24 | B45: =VLOOKUP(A45,Таблица!$A$2:$L$201,2) -> 0 | C45: =VLOOKUP(A45,Таблица!$A$2:$L$201,4) -> 0 | D45: =VLOOKUP(A45,Таблица!$A$2:$L$201,11) -> 0
A46: 25 | B46: =VLOOKUP(A46,Таблица!$A$2:$L$201,2) -> 0 | C46: =VLOOKUP(A46,Таблица!$A$2:$L$201,4) -> 0 | D46: =VLOOKUP(A46,Таблица!$A$2:$L$201,11) -> 0
A47: 26 | B47: =VLOOKUP(A47,Таблица!$A$2:$L$201,2) -> 0 | C47: =VLOOKUP(A47,Таблица!$A$2:$L$201,4) -> 0 | D47: =VLOOKUP(A47,Таблица!$A$2:$L$201,11) -> 0
A48: 27 | B48: =VLOOKUP(A48,Таблица!$A$2:$L$201,2) -> 0 | C48: =VLOOKUP(A48,Таблица!$A$2:$L$201,4) -> 0 | D48: =VLOOKUP(A48,Таблица!$A$2:$L$201,11) -> 0
A49: 28 | B49: =VLOOKUP(A49,Таблица!$A$2:$L$201,2) -> 0 | C49: =VLOOKUP(A49,Таблица!$A$2:$L$201,4) -> 0 | D49: =VLOOKUP(A49,Таблица!$A$2:$L$201,11) -> 0
A50: 29 | B50: =VLOOKUP(A50,Таблица!$A$2:$L$201,2) -> 0 | C50: =VLOOKUP(A50,Таблица!$A$2:$L$201,4) -> 0 | D50: =VLOOKUP(A50,Таблица!$A$2:$L$201,11) -> 0
A51: 31 | B51: =VLOOKUP(A51,Таблица!$A$2:$L$201,2) -> 0 | C51: =VLOOKUP(A51,Таблица!$A$2:$L$201,4) -> 0 | D51: =VLOOKUP(A51,Таблица!$A$2:$L$201,11) -> 0
A52: 31 | B52: =VLOOKUP(A52,Таблица!$A$2:$L$201,2) -> 0 | C52: =VLOOKUP(A52,Таблица!$A$2:$L$201,4) -> 0 | D52: =VLOOKUP(A52,Таблица!$A$2:$L$201,11) -> 0
A53: 32 | B53: =VLOOKUP(A53,Таблица!$A$2:$L$201,2) -> 0 | C53: =VLOOKUP(A53,Таблица!$A$2:$L$201,4) -> 0 | D53: =VLOOKUP(A53,Таблица!$A$2:$L$201,11) -> 0
A54: 33 | B54: =VLOOKUP(A54,Таблица!$A$2:$L$201,2) -> 0 | C54: =VLOOKUP(A54,Таблица!$A$2:$L$201,4) -> 0 | D54: =VLOOKUP(A54,Таблица!$A$2:$L$201,11) -> 0
A55: 34 | B55: =VLOOKUP(A55,Таблица!$A$2:$L$201,2) -> 0 | C55: =VLOOKUP(A55,Таблица!$A$2:$L$201,4) -> 0 | D55: =VLOOKUP(A55,Таблица!$A$2:$L$201,11) -> 0
A56: 35 | B56: =VLOOKUP(A56,Таблица!$A$2:$L$201,2) -> 0 | C56: =VLOOKUP(A56,Таблица!$A$2:$L$201,4) -> 0 | D56: =VLOOKUP(A56,Таблица!$A$2:$L$201,11) -> 0
A57: 36 | B57: =VLOOKUP(A57,Таблица!$A$2:$L$201,2) -> 0 | C57: =VLOOKUP(A57,Таблица!$A$2:$L$201,4) -> 0 | D57: =VLOOKUP(A57,Таблица!$A$2:$L$201,11) -> 0
A58: 37 | B58: =VLOOKUP(A58,Таблица!$A$2:$L$201,2) -> 0 | C58: =VLOOKUP(A58,Таблица!$A$2:$L$201,4) -> 0 | D58: =VLOOKUP(A58,Таблица!$A$2:$L$201,11) -> 0
A59: 38 | B59: =VLOOKUP(A59,Таблица!$A$2:$L$201,2) -> 0 | C59: =VLOOKUP(A59,Таблица!$A$2:$L$201,4) -> 0 | D59: =VLOOKUP(A59,Таблица!$A$2:$L$201,11) -> 0
A60: 39 | B60: =VLOOKUP(A60,Таблица!$A$2:$L$201,2) -> 0 | C60: =VLOOKUP(A60,Таблица!$A$2:$L$201,4) -> 0 | D60: =VLOOKUP(A60,Таблица!$A$2:$L$201,11) -> 0
A61: 40 | B61: =VLOOKUP(A61,Таблица!$A$2:$L$201,2) -> 0 | C61: =VLOOKUP(A61,Таблица!$A$2:$L$201,4) -> 0 | D61: =VLOOKUP(A61,Таблица!$A$2:$L$201,11) -> 0
A62: 41 | B62: =VLOOKUP(A62,Таблица!$A$2:$L$201,2) -> 0 | C62: =VLOOKUP(A62,Таблица!$A$2:$L$201,4) -> 0 | D62: =VLOOKUP(A62,Таблица!$A$2:$L$201,11) -> 0
A63: 42 | B63: =VLOOKUP(A63,Таблица!$A$2:$L$201,2) -> 0 | C63: =VLOOKUP(A63,Таблица!$A$2:$L$201,4) -> 0 | D63: =VLOOKUP(A63,Таблица!$A$2:$L$201,11) -> 0
A64: 43 | B64: =VLOOKUP(A64,Таблица!$A$2:$L$201,2) -> 0 | C64: =VLOOKUP(A64,Таблица!$A$2:$L$201,4) -> 0 | D64: =VLOOKUP(A64,Таблица!$A$2:$L$201,11) -> 0
A65: 44 | B65: =VLOOKUP(A65,Таблица!$A$2:$L$201,2) -> 0 | C65: =VLOOKUP(A65,Таблица!$A$2:$L$201,4) -> 0 | D65: =VLOOKUP(A65,Таблица!$A$2:$L$201,11) -> 0
A66: 45 | B66: =VLOOKUP(A66,Таблица!$A$2:$L$201,2) -> 0 | C66: =VLOOKUP(A66,Таблица!$A$2:$L$201,4) -> 0 | D66: =VLOOKUP(A66,Таблица!$A$2:$L$201,11) -> 0
A67: 46 | B67: =VLOOKUP(A67,Таблица!$A$2:$L$201,2) -> 0 | C67: =VLOOKUP(A67,Таблица!$A$2:$L$201,4) -> 0 | D67: =VLOOKUP(A67,Таблица!$A$2:$L$201,11) -> 0
A68: 47 | B68: =VLOOKUP(A68,Таблица!$A$2:$L$201,2) -> 0 | C68: =VLOOKUP(A68,Таблица!$A$2:$L$201,4) -> 0 | D68: =VLOOKUP(A68,Таблица!$A$2:$L$201,11) -> 0
A69: 48 | B69: =VLOOKUP(A69,Таблица!$A$2:$L$201,2) -> 0 | C69: =VLOOKUP(A69,Таблица!$A$2:$L$201,4) -> 0 | D69: =VLOOKUP(A69,Таблица!$A$2:$L$201,11) -> 0
A70: 49 | B70: =VLOOKUP(A70,Таблица!$A$2:$L$201,2) -> 0 | C70: =VLOOKUP(A70,Таблица!$A$2:$L$201,4) -> 0 | D70: =VLOOKUP(A70,Таблица!$A$2:$L$201,11) -> 0
A71: 50 | B71: =VLOOKUP(A71,Таблица!$A$2:$L$201,2) -> 0 | C71: =VLOOKUP(A71,Таблица!$A$2:$L$201,4) -> 0 | D71: =VLOOKUP(A71,Таблица!$A$2:$L$201,11) -> 0
A72: 51 | B72: =VLOOKUP(A72,Таблица!$A$2:$L$201,2) -> 0 | C72: =VLOOKUP(A72,Таблица!$A$2:$L$201,4) -> 0 | D72: =VLOOKUP(A72,Таблица!$A$2:$L$201,11) -> 0
A73: 52 | B73: =VLOOKUP(A73,Таблица!$A$2:$L$201,2) -> 0 | C73: =VLOOKUP(A73,Таблица!$A$2:$L$201,4) -> 0 | D73: =VLOOKUP(A73,Таблица!$A$2:$L$201,11) -> 0
A74: 53 | B74: =VLOOKUP(A74,Таблица!$A$2:$L$201,2) -> 0 | C74: =VLOOKUP(A74,Таблица!$A$2:$L$201,4) -> 0 | D74: =VLOOKUP(A74,Таблица!$A$2:$L$201,11) -> 0
A75: 54 | B75: =VLOOKUP(A75,Таблица!$A$2:$L$201,2) -> 0 | C75: =VLOOKUP(A75,Таблица!$A$2:$L$201,4) -> 0 | D75: =VLOOKUP(A75,Таблица!$A$2:$L$201,11) -> 0
A76: 55 | B76: =VLOOKUP(A76,Таблица!$A$2:$L$201,2) -> 0 | C76: =VLOOKUP(A76,Таблица!$A$2:$L$201,4) -> 0 | D76: =VLOOKUP(A76,Таблица!$A$2:$L$201,11) -> 0
A77: 56 | B77: =VLOOKUP(A77,Таблица!$A$2:$L$201,2) -> 0 | C77: =VLOOKUP(A77,Таблица!$A$2:$L$201,4) -> 0 | D77: =VLOOKUP(A77,Таблица!$A$2:$L$201,11) -> 0
A78: 57 | B78: =VLOOKUP(A78,Таблица!$A$2:$L$201,2) -> 0 | C78: =VLOOKUP(A78,Таблица!$A$2:$L$201,4) -> 0 | D78: =VLOOKUP(A78,Таблица!$A$2:$L$201,11) -> 0
A79: 58 | B79: =VLOOKUP(A79,Таблица!$A$2:$L$201,2) -> 0 | C79: =VLOOKUP(A79,Таблица!$A$2:$L$201,4) -> 0 | D79: =VLOOKUP(A79,Таблица!$A$2:$L$201,11) -> 0
A80: 59 | B80: =VLOOKUP(A80,Таблица!$A$2:$L$201,2) -> 0 | C80: =VLOOKUP(A80,Таблица!$A$2:$L$201,4) -> 0 | D80: =VLOOKUP(A80,Таблица!$A$2:$L$201,11) -> 0
A81: 60 | B81: =VLOOKUP(A81,Таблица!$A$2:$L$201,2) -> 0 | C81: =VLOOKUP(A81,Таблица!$A$2:$L$201,4) -> 0 | D81: =VLOOKUP(A81,Таблица!$A$2:$L$201,11) -> 0
A82: 61 | B82: =VLOOKUP(A82,Таблица!$A$2:$L$201,2) -> 0 | C82: =VLOOKUP(A82,Таблица!$A$2:$L$201,4) -> 0 | D82: =VLOOKUP(A82,Таблица!$A$2:$L$201,11) -> 0
A83: 62 | B83: =VLOOKUP(A83,Таблица!$A$2:$L$201,2) -> 0 | C83: =VLOOKUP(A83,Таблица!$A$2:$L$201,4) -> 0 | D83: =VLOOKUP(A83,Таблица!$A$2:$L$201,11) -> 0
A84: 63 | B84: =VLOOKUP(A84,Таблица!$A$2:$L$201,2) -> 0 | C84: =VLOOKUP(A84,Таблица!$A$2:$L$201,4) -> 0 | D84: =VLOOKUP(A84,Таблица!$A$2:$L$201,11) -> 0
A85: 64 | B85: =VLOOKUP(A85,Таблица!$A$2:$L$201,2) -> 0 | C85: =VLOOKUP(A85,Таблица!$A$2:$L$201,4) -> 0 | D85: =VLOOKUP(A85,Таблица!$A$2:$L$201,11) -> 0
A86: 65 | B86: =VLOOKUP(A86,Таблица!$A$2:$L$201,2) -> 0 | C86: =VLOOKUP(A86,Таблица!$A$2:$L$201,4) -> 0 | D86: =VLOOKUP(A86,Таблица!$A$2:$L$201,11) -> 0
A87: 66 | B87: =VLOOKUP(A87,Таблица!$A$2:$L$201,2) -> 0 | C87: =VLOOKUP(A87,Таблица!$A$2:$L$201,4) -> 0 | D87: =VLOOKUP(A87,Таблица!$A$2:$L$201,11) -> 0
A88: 67 | B88: =VLOOKUP(A88,Таблица!$A$2:$L$201,2) -> 0 | C88: =VLOOKUP(A88,Таблица!$A$2:$L$201,4) -> 0 | D88: =VLOOKUP(A88,Таблица!$A$2:$L$201,11) -> 0
A89: 68 | B89: =VLOOKUP(A89,Таблица!$A$2:$L$201,2) -> 0 | C89: =VLOOKUP(A89,Таблица!$A$2:$L$201,4) -> 0 | D89: =VLOOKUP(A89,Таблица!$A$2:$L$201,11) -> 0
A90: 69 | B90: =VLOOKUP(A90,Таблица!$A$2:$L$201,2) -> 0 | C90: =VLOOKUP(A90,Таблица!$A$2:$L$201,4) -> 0 | D90: =VLOOKUP(A90,Таблица!$A$2:$L$201,11) -> 0
A91: 70 | B91: =VLOOKUP(A91,Таблица!$A$2:$L$201,2) -> 0 | C91: =VLOOKUP(A91,Таблица!$A$2:$L$201,4) -> 0 | D91: =VLOOKUP(A91,Таблица!$A$2:$L$201,11) -> 0
A92: 71 | B92: =VLOOKUP(A92,Таблица!$A$2:$L$201,2) -> 0 | C92: =VLOOKUP(A92,Таблица!$A$2:$L$201,4) -> 0 | D92: =VLOOKUP(A92,Таблица!$A$2:$L$201,11) -> 0
A93: 72 | B93: =VLOOKUP(A93,Таблица!$A$2:$L$201,2) -> 0 | C93: =VLOOKUP(A93,Таблица!$A$2:$L$201,4) -> 0 | D93: =VLOOKUP(A93,Таблица!$A$2:$L$201,11) -> 0
A94: 73 | B94: =VLOOKUP(A94,Таблица!$A$2:$L$201,2) -> 0 | C94: =VLOOKUP(A94,Таблица!$A$2:$L$201,4) -> 0 | D94: =VLOOKUP(A94,Таблица!$A$2:$L$201,11) -> 0
A95: 74 | B95: =VLOOKUP(A95,Таблица!$A$2:$L$201,2) -> 0 | C95: =VLOOKUP(A95,Таблица!$A$2:$L$201,4) -> 0 | D95: =VLOOKUP(A95,Таблица!$A$2:$L$201,11) -> 0
A96: 75 | B96: =VLOOKUP(A96,Таблица!$A$2:$L$201,2) -> 0 | C96: =VLOOKUP(A96,Таблица!$A$2:$L$201,4) -> 0 | D96: =VLOOKUP(A96,Таблица!$A$2:$L$201,11) -> 0
A97: 76 | B97: =VLOOKUP(A97,Таблица!$A$2:$L$201,2) -> 0 | C97: =VLOOKUP(A97,Таблица!$A$2:$L$201,4) -> 0 | D97: =VLOOKUP(A97,Таблица!$A$2:$L$201,11) -> 0
A98: 77 | B98: =VLOOKUP(A98,Таблица!$A$2:$L$201,2) -> 0 | C98: =VLOOKUP(A98,Таблица!$A$2:$L$201,4) -> 0 | D98: =VLOOKUP(A98,Таблица!$A$2:$L$201,11) -> 0
A99: 78 | B99: =VLOOKUP(A99,Таблица!$A$2:$L$201,2) -> 0 | C99: =VLOOKUP(A99,Таблица!$A$2:$L$201,4) -> 0 | D99: =VLOOKUP(A99,Таблица!$A$2:$L$201,11) -> 0
A100: 79 | B100: =VLOOKUP(A100,Таблица!$A$2:$L$201,2) -> 0 | C100: =VLOOKUP(A100,Таблица!$A$2:$L$201,4) -> 0 | D100: =VLOOKUP(A100,Таблица!$A$2:$L$201,11) -> 0
A101: 80 | B101: =VLOOKUP(A101,Таблица!$A$2:$L$201,2) -> 0 | C101: =VLOOKUP(A101,Таблица!$A$2:$L$201,4) -> 0 | D101: =VLOOKUP(A101,Таблица!$A$2:$L$201,11) -> 0
A102: 81 | B102: =VLOOKUP(A102,Таблица!$A$2:$L$201,2) -> 0 | C102: =VLOOKUP(A102,Таблица!$A$2:$L$201,4) -> 0 | D102: =VLOOKUP(A102,Таблица!$A$2:$L$201,11) -> 0
A103: 82 | B103: =VLOOKUP(A103,Таблица!$A$2:$L$201,2) -> 0 | C103: =VLOOKUP(A103,Таблица!$A$2:$L$201,4) -> 0 | D103: =VLOOKUP(A103,Таблица!$A$2:$L$201,11) -> 0
A104: 83 | B104: =VLOOKUP(A104,Таблица!$A$2:$L$201,2) -> 0 | C104: =VLOOKUP(A104,Таблица!$A$2:$L$201,4) -> 0 | D104: =VLOOKUP(A104,Таблица!$A$2:$L$201,11) -> 0
A105: 84 | B105: =VLOOKUP(A105,Таблица!$A$2:$L$201,2) -> 0 | C105: =VLOOKUP(A105,Таблица!$A$2:$L$201,4) -> 0 | D105: =VLOOKUP(A105,Таблица!$A$2:$L$201,11) -> 0
A106: 85 | B106: =VLOOKUP(A106,Таблица!$A$2:$L$201,2) -> 0 | C106: =VLOOKUP(A106,Таблица!$A$2:$L$201,4) -> 0 | D106: =VLOOKUP(A106,Таблица!$A$2:$L$201,11) -> 0
A107: 86 | B107: =VLOOKUP(A107,Таблица!$A$2:$L$201,2) -> 0 | C107: =VLOOKUP(A107,Таблица!$A$2:$L$201,4) -> 0 | D107: =VLOOKUP(A107,Таблица!$A$2:$L$201,11) -> 0
A108: 87 | B108: =VLOOKUP(A108,Таблица!$A$2:$L$201,2) -> 0 | C108: =VLOOKUP(A108,Таблица!$A$2:$L$201,4) -> 0 | D108: =VLOOKUP(A108,Таблица!$A$2:$L$201,11) -> 0
A109: 88 | B109: =VLOOKUP(A109,Таблица!$A$2:$L$201,2) -> 0 | C109: =VLOOKUP(A109,Таблица!$A$2:$L$201,4) -> 0 | D109: =VLOOKUP(A109,Таблица!$A$2:$L$201,11) -> 0
A110: 89 | B110: =VLOOKUP(A110,Таблица!$A$2:$L$201,2) -> 0 | C110: =VLOOKUP(A110,Таблица!$A$2:$L$201,4) -> 0 | D110: =VLOOKUP(A110,Таблица!$A$2:$L$201,11) -> 0
A111: 90 | B111: =VLOOKUP(A111,Таблица!$A$2:$L$201,2) -> 0 | C111: =VLOOKUP(A111,Таблица!$A$2:$L$201,4) -> 0 | D111: =VLOOKUP(A111,Таблица!$A$2:$L$201,11) -> 0
A112: 91 | B112: =VLOOKUP(A112,Таблица!$A$2:$L$201,2) -> 0 | C112: =VLOOKUP(A112,Таблица!$A$2:$L$201,4) -> 0 | D112: =VLOOKUP(A112,Таблица!$A$2:$L$201,11) -> 0
A113: 92 | B113: =VLOOKUP(A113,Таблица!$A$2:$L$201,2) -> 0 | C113: =VLOOKUP(A113,Таблица!$A$2:$L$201,4) -> 0 | D113: =VLOOKUP(A113,Таблица!$A$2:$L$201,11) -> 0
A114: 93 | B114: =VLOOKUP(A114,Таблица!$A$2:$L$201,2) -> 0 | C114: =VLOOKUP(A114,Таблица!$A$2:$L$201,4) -> 0 | D114: =VLOOKUP(A114,Таблица!$A$2:$L$201,11) -> 0
A115: 94 | B115: =VLOOKUP(A115,Таблица!$A$2:$L$201,2) -> 0 | C115: =VLOOKUP(A115,Таблица!$A$2:$L$201,4) -> 0 | D115: =VLOOKUP(A115,Таблица!$A$2:$L$201,11) -> 0
A116: 95 | B116: =VLOOKUP(A116,Таблица!$A$2:$L$201,2) -> 0 | C116: =VLOOKUP(A116,Таблица!$A$2:$L$201,4) -> 0 | D116: =VLOOKUP(A116,Таблица!$A$2:$L$201,11) -> 0
A117: 96 | B117: =VLOOKUP(A117,Таблица!$A$2:$L$201,2) -> 0 | C117: =VLOOKUP(A117,Таблица!$A$2:$L$201,4) -> 0 | D117: =VLOOKUP(A117,Таблица!$A$2:$L$201,11) -> 0
A118: 97 | B118: =VLOOKUP(A118,Таблица!$A$2:$L$201,2) -> 0 | C118: =VLOOKUP(A118,Таблица!$A$2:$L$201,4) -> 0 | D118: =VLOOKUP(A118,Таблица!$A$2:$L$201,11) -> 0
A119: 98 | B119: =VLOOKUP(A119,Таблица!$A$2:$L$201,2) -> 0 | C119: =VLOOKUP(A119,Таблица!$A$2:$L$201,4) -> 0 | D119: =VLOOKUP(A119,Таблица!$A$2:$L$201,11) -> 0
A120: 99 | B120: =VLOOKUP(A120,Таблица!$A$2:$L$201,2) -> 0 | C120: =VLOOKUP(A120,Таблица!$A$2:$L$201,4) -> 0 | D120: =VLOOKUP(A120,Таблица!$A$2:$L$201,11) -> 0
A121: 100 | B121: =VLOOKUP(A121,Таблица!$A$2:$L$201,2) -> 0 | C121: =VLOOKUP(A121,Таблица!$A$2:$L$201,4) -> 0 | D121: =VLOOKUP(A121,Таблица!$A$2:$L$201,11) -> 0
A122: 101 | B122: =VLOOKUP(A122,Таблица!$A$2:$L$201,2) -> 0 | C122: =VLOOKUP(A122,Таблица!$A$2:$L$201,4) -> 0 | D122: =VLOOKUP(A122,Таблица!$A$2:$L$201,11) -> 0
A123: 102 | B123: =VLOOKUP(A123,Таблица!$A$2:$L$201,2) -> 0 | C123: =VLOOKUP(A123,Таблица!$A$2:$L$201,4) -> 0 | D123: =VLOOKUP(A123,Таблица!$A$2:$L$201,11) -> 0
A124: 103 | B124: =VLOOKUP(A124,Таблица!$A$2:$L$201,2) -> 0 | C124: =VLOOKUP(A124,Таблица!$A$2:$L$201,4) -> 0 | D124: =VLOOKUP(A124,Таблица!$A$2:$L$201,11) -> 0
A125: 104 | B125: =VLOOKUP(A125,Таблица!$A$2:$L$201,2) -> 0 | C125: =VLOOKUP(A125,Таблица!$A$2:$L$201,4) -> 0 | D125: =VLOOKUP(A125,Таблица!$A$2:$L$201,11) -> 0
A126: 105 | B126: =VLOOKUP(A126,Таблица!$A$2:$L$201,2) -> 0 | C126: =VLOOKUP(A126,Таблица!$A$2:$L$201,4) -> 0 | D126: =VLOOKUP(A126,Таблица!$A$2:$L$201,11) -> 0
A127: 106 | B127: =VLOOKUP(A127,Таблица!$A$2:$L$201,2) -> 0 | C127: =VLOOKUP(A127,Таблица!$A$2:$L$201,4) -> 0 | D127: =VLOOKUP(A127,Таблица!$A$2:$L$201,11) -> 0
A128: 107 | B128: =VLOOKUP(A128,Таблица!$A$2:$L$201,2) -> 0 | C128: =VLOOKUP(A128,Таблица!$A$2:$L$201,4) -> 0 | D128: =VLOOKUP(A128,Таблица!$A$2:$L$201,11) -> 0
A129: 108 | B129: =VLOOKUP(A129,Таблица!$A$2:$L$201,2) -> 0 | C129: =VLOOKUP(A129,Таблица!$A$2:$L$201,4) -> 0 | D129: =VLOOKUP(A129,Таблица!$A$2:$L$201,11) -> 0
A130: 109 | B130: =VLOOKUP(A130,Таблица!$A$2:$L$201,2) -> 0 | C130: =VLOOKUP(A130,Таблица!$A$2:$L$201,4) -> 0 | D130: =VLOOKUP(A130,Таблица!$A$2:$L$201,11) -> 0
A131: 110 | B131: =VLOOKUP(A131,Таблица!$A$2:$L$201,2) -> 0 | C131: =VLOOKUP(A131,Таблица!$A$2:$L$201,4) -> 0 | D131: =VLOOKUP(A131,Таблица!$A$2:$L$201,11) -> 0
A132: 111 | B132: =VLOOKUP(A132,Таблица!$A$2:$L$201,2) -> 0 | C132: =VLOOKUP(A132,Таблица!$A$2:$L$201,4) -> 0 | D132: =VLOOKUP(A132,Таблица!$A$2:$L$201,11) -> 0
A134: итого: | B134: =FLOOR(B1,1)&" "&TEXT(C1,"") -> 26800 (Двадцать шесть тысяч восемьсот) рублей 00 коп.
A136: Председатель комиссии
A137: по трудовым спорам __________________ | C137: =Данные!B8 -> Антонова А.П.
A139: Секретарь комиссии __________________ | C139: =Данные!B9 -> Гашуткина Г.И.

Sheet 1
B2: Комиссия по трудовым спорам Общества с ограниченной ответственностью «Управление»
A3: =--RIGHTB(SUBSTITUTE(CELL("filename",D1),"]",REPT(" ",31)),31) -> 1
B4: =Дата!B2 -> 2017-06-24
A5: =Данные!B2&" "&Дата!A2&" от "&Дата!G2&" года "&Данные!B3&Дата!I2&" месяц "&Дата!J2&" года." -> Настоящее удостоверение выдано на основании Решения КТС Общества с ограниченной ответственностью «Управление» № 6 от 25 июня 2017 года о взыскании невыплаченной своевременно заработной платы за май месяц 2017 года.
A6: в пользу: | B6: =VLOOKUP(A3,Таблица!A2:L201,3) -> Иванова Ивана Ивановича
A7: в сумме: | B7: =FLOOR(VLOOKUP(A3,Таблица!A2:L201,11),1)&" "&VLOOKUP(A3,Таблица!A2:L201,12) -> 9800 (Девять тысяч восемьсот) рублей 00 коп.
A8: Решение комиссии по трудовым спорам:
A9: =Данные!B4&" в пользу:" -> Взыскать с Общества с ограниченной ответственностью «Управление» юридический адрес: 444444, г. Энска, мкр. Стройка, д. 1, Банковские реквизиты: АКБ «БАНККРЕДИТПРОСТОМБАНК» ПАО г. Энска, р/счет 98765432100000123456, Кор. счет 98765432100000000123, ИНН 222004444, БИК 012345678 в пользу:
A10: =VLOOKUP($A$3,Таблица!$A$2:$L$201,3)&", дата рождения "&TEXT((VLOOKUP($A$3,Таблица!$A$2:$L$201,5)),"ДД.ММ.ГГГГ")&" года, "&"место рождения: "&VLOOKUP($A$3,Таблица!$A$2:$L$201,6)&", адрес: "&VLOOKUP(A3,Таблица!A2:L201,8)&Данные!B5&Дата!I2&" месяц "&Дата!J2&" года"&" в сумме: "&FLOOR(VLOOKUP(A3,Таблица!A2:L201,11),1)&" "&VLOOKUP(A3,Таблица!A2:L201,12) -> Иванова Ивана Ивановича, дата рождения 21.10.1961 года, место рождения: с.Чужое Энского района, адрес: Энская Республика, г. Энск, ул. Ленина, 1, кв. 2, невыплаченную заработную плату за май месяц 2017 года в сумме: 9800 (Девять тысяч восемьсот) рублей 00 коп.
B11: =Дата!D2 -> 2017-06-26
A12: =Данные!B6 -> Настоящее удостоверение имеет силу исполнительного листа и предъявляется к исполнению не позднее 3-х месяцев со следующего дня его выдачи.
A13: =Данные!B7 -> Налог на доходы физических лиц, налог в пенсионный фонд с указанной суммы удержаны.
B15: =Дата!B2 -> 2017-06-24
B16: Председатель КТС: | C16: =Данные!B8 -> Антонова А.П.
B17: Секретарь КТС: | C17: =Данные!B9 -> Гашуткина Г.И.
B31: АКБ «БАНККРЕДИТПРОСТОМБАНК» ПАО
B32: город Энск, улица Патриса Лумумбы, 26
B33: БИК 04970625
B34: =VLOOKUP($A$3,Таблица!$A$2:$L$201,3) -> Иванова Ивана Ивановича
B35: ="Паспорт: "&VLOOKUP($A$3,Таблица!$A$2:$L$201,7) -> Паспорт: 98 01 № 123456 выдан Отделением УФМС России по Энской Республике в Энском районе 15 ноября 2007 г.
B36: ="Адрес: "&VLOOKUP($A$3,Таблица!$A$2:$L$201,8) -> Адрес: Энская Республика, г. Энск, ул. Ленина, 1, кв. 2
B37: ="ИНН "&VLOOKUP($A$3,Таблица!$A$2:$L$201,9) -> ИНН 202201234567
A38: =Данные!C12&" "&A3&" от "&Дата!F2&" года, "&Данные!C13&Дата!I2&" месяц "&Дата!J2&" года." -> Предъявляется для взыскания с расчетного счета Общества с ограниченной ответственностью «Управление» № 12345678998745632145, открытого в АКБ «БАНККРЕДИТПРОСТОМБАНК» ПАО удостоверение комиссии по трудовым спорам Общества с ограниченной ответственностью «Управление» № 1 от 24 июня 2017 года, на выплату заработной платы за май месяц 2017 года.
A39: =Данные!C14&FLOOR(VLOOKUP(A3,Таблица!A2:L201,11),1)&" "&VLOOKUP(A3,Таблица!A2:L201,12)&Данные!C15&VLOOKUP($A$3,Таблица!$A$2:$L$201,10)&Данные!C16 -> на сумму 9800 (Девять тысяч восемьсот) рублей 00 коп. к списанию в мою пользу на лицевой счет № 00000000000000000001 в АКБ «БАНККРЕДИТПРОСТОМБАНК» ПАО.
B40: =Дата!B2 -> 2017-06-24
B41: =VLOOKUP($A$3,Таблица!$A$2:$L$201,2) -> Иванов Иван Иванович
B42: Фамилия Имя Отчество | C42: Подпись

Sheet 2
B2: Комиссия по трудовым спорам Общества с ограниченной ответственностью «Управление ЖКХ»
A3: =--RIGHTB(SUBSTITUTE(CELL("filename",D1),"]",REPT(" ",31)),31) -> 2
B4: =Дата!B2 -> 2017-06-24
A5: =Данные!B2&" "&Дата!A2&" от "&Дата!G2&" года "&Данные!B3&Дата!I2&" месяц "&Дата!J2&" года." -> Настоящее удостоверение выдано на основании Решения КТС Общества с ограниченной ответственностью «Управление» № 6 от 25 июня 2017 года о взыскании невыплаченной своевременно заработной платы за май месяц 2017 года.
A6: в пользу: | B6: =VLOOKUP(A3,Таблица!A2:L201,3) -> Иванова Ивана Ивановича
A7: в сумме: | B7: =FLOOR(VLOOKUP(A3,Таблица!A2:L201,11),1)&" "&VLOOKUP(A3,Таблица!A2:L201,12) -> 9800 (Девять тысяч восемьсот) рублей 00 коп.
A8: Решение комиссии по трудовым спорам:
A9: =Данные!B4&" в пользу:" -> Взыскать с Общества с ограниченной ответственностью «Управление» юридический адрес: 444444, г. Энска, мкр. Стройка, д. 1, Банковские реквизиты: АКБ «БАНККРЕДИТПРОСТОМБАНК» ПАО г. Энска, р/счет 98765432100000123456, Кор. счет 98765432100000000123, ИНН 222004444, БИК 012345678 в пользу:
A10: =VLOOKUP($A$3,Таблица!$A$2:$L$201,3)&", дата рождения "&TEXT((VLOOKUP($A$3,Таблица!$A$2:$L$201,5)),"ДД.ММ.ГГГГ")&" года, "&"место рождения: "&VLOOKUP($A$3,Таблица!$A$2:$L$201,6)&", адрес: "&VLOOKUP(A3,Таблица!A2:L201,8)&Данные!B5&Дата!I2&" месяц "&Дата!J2&" года"&" в сумме: "&FLOOR(VLOOKUP(A3,Таблица!A2:L201,11),1)&" "&VLOOKUP(A3,Таблица!A2:L201,12) -> Иванова Ивана Ивановича, дата рождения 21.10.1961 года, место рождения: с.Чужое Энского района, адрес: Энская Республика, г. Энск, ул. Ленина, 1, кв. 2, невыплаченную заработную плату за май месяц 2017 года в сумме: 9800 (Девять тысяч восемьсот) рублей 00 коп.
B11: =Дата!D2 -> 2017-06-26
A12: =Данные!B6 -> Настоящее удостоверение имеет силу исполнительного листа и предъявляется к исполнению не позднее 3-х месяцев со следующего дня его выдачи.
A13: =Данные!B7 -> Налог на доходы физических лиц, налог в пенсионный фонд с указанной суммы удержаны.
B15: =Дата!B2 -> 2017-06-24
B16: Председатель КТС: | C16: =Данные!B8 -> Антонова А.П.
B17: Секретарь КТС: | C17: =Данные!B9 -> Гашуткина Г.И.
B31: АКБ «ЧУВАШКРЕДИТПРОМБАНК» ПАО
B32: Чувашская Республика, город Алатырь, улица Горшенина, 26
B33: БИК 04970625
B34: =VLOOKUP($A$3,Таблица!$A$2:$L$201,3) -> Иванова Ивана Ивановича
B35: ="Паспорт: "&VLOOKUP($A$3,Таблица!$A$2:$L$201,7) -> Паспорт: 98 01 № 123456 выдан Отделением УФМС России по Энской Республике в Энском районе 15 ноября 2007 г.
B36: ="Адрес: "&VLOOKUP($A$3,Таблица!$A$2:$L$201,8) -> Адрес: Энская Республика, г. Энск, ул. Ленина, 1, кв. 2
B37: ="ИНН "&VLOOKUP($A$3,Таблица!$A$2:$L$201,9) -> ИНН 202201234567
A38: =Данные!C12&" "&A3&" от "&Дата!F2&" года, "&Данные!C13&Дата!I2&" месяц "&Дата!J2&" года." -> Предъявляется для взыскания с расчетного счета Общества с ограниченной ответственностью «Управление» № 12345678998745632145, открытого в АКБ «БАНККРЕДИТПРОСТОМБАНК» ПАО удостоверение комиссии по трудовым спорам Общества с ограниченной ответственностью «Управление» № 2 от 24 июня 2017 года, на выплату заработной платы за май месяц 2017 года.
A39: =Данные!C14&FLOOR(VLOOKUP(A3,Таблица!A2:L201,11),1)&" "&VLOOKUP(A3,Таблица!A2:L201,12)&Данные!C15&VLOOKUP($A$3,Таблица!$A$2:$L$201,10)&Данные!C16 -> на сумму 9800 (Девять тысяч восемьсот) рублей 00 коп. к списанию в мою пользу на лицевой счет № 00000000000000000001 в АКБ «БАНККРЕДИТПРОСТОМБАНК» ПАО.
B40: =Дата!B2 -> 2017-06-24
B41: =VLOOKUP($A$3,Таблица!$A$2:$L$201,2) -> Иванов Иван Иванович
B42: Фамилия Имя Отчество | C42: Подпись

Sheet 3
B2: Комиссия по трудовым спорам Общества с ограниченной ответственностью «Управление»
A3: =--RIGHTB(SUBSTITUTE(CELL("filename",D1),"]",REPT(" ",31)),31) -> 3
B4: =Дата!B2 -> 2017-06-24
A5: =Данные!B2&" "&Дата!A2&" от "&Дата!G2&" года "&Данные!B3&Дата!I2&" месяц "&Дата!J2&" года." -> Настоящее удостоверение выдано на основании Решения КТС Общества с ограниченной ответственностью «Управление» № 6 от 25 июня 2017 года о взыскании невыплаченной своевременно заработной платы за май месяц 2017 года.
A6: в пользу: | B6: =VLOOKUP(A3,Таблица!A2:L201,3) -> Петрова Пётра Петровича
A7: в сумме: | B7: =FLOOR(VLOOKUP(A3,Таблица!A2:L201,11),1)&" "&VLOOKUP(A3,Таблица!A2:L201,12) -> 7200 (Семь тысяч двести) рублей 00 коп.
A8: Решение комиссии по трудовым спорам:
A9: =Данные!B4&" в пользу:" -> Взыскать с Общества с ограниченной ответственностью «Управление» юридический адрес: 444444, г. Энска, мкр. Стройка, д. 1, Банковские реквизиты: АКБ «БАНККРЕДИТПРОСТОМБАНК» ПАО г. Энска, р/счет 98765432100000123456, Кор. счет 98765432100000000123, ИНН 222004444, БИК 012345678 в пользу:
A10: =VLOOKUP($A$3,Таблица!$A$2:$L$201,3)&", дата рождения "&TEXT((VLOOKUP($A$3,Таблица!$A$2:$L$201,5)),"ДД.ММ.ГГГГ")&" года, "&"место рождения: "&VLOOKUP($A$3,Таблица!$A$2:$L$201,6)&", адрес: "&VLOOKUP(A3,Таблица!A2:L201,8)&Данные!B5&Дата!I2&" месяц "&Дата!J2&" года"&" в сумме: "&FLOOR(VLOOKUP(A3,Таблица!A2:L201,11),1)&" "&VLOOKUP(A3,Таблица!A2:L201,12) -> Петрова Пётра Петровича, дата рождения 23.12.1963 года, место рождения: г.Энск Энской АССР, адрес: Энская Республика, г. Энск, ул. Ильича, 1, кв. 4, невыплаченную заработную плату за май месяц 2017 года в сумме: 7200 (Семь тысяч двести) рублей 00 коп.
B11: =Дата!D2 -> 2017-06-26
A12: =Данные!B6 -> Настоящее удостоверение имеет силу исполнительного листа и предъявляется к исполнению не позднее 3-х месяцев со следующего дня его выдачи.
A13: =Данные!B7 -> Налог на доходы физических лиц, налог в пенсионный фонд с указанной суммы удержаны.
B15: =Дата!B2 -> 2017-06-24
B16: Председатель КТС: | C16: =Данные!B8 -> Антонова А.П.
B17: Секретарь КТС: | C17: =Данные!B9 -> Гашуткина Г.И.
B31: АКБ «БАНККРЕДИТПРОСТОМБАНК» ПАО
B32: город Энск, улица Патриса Лумумбы, 26
B33: БИК 04970625
B34: =VLOOKUP($A$3,Таблица!$A$2:$L$201,3) -> Петрова Пётра Петровича
B35: ="Паспорт: "&VLOOKUP($A$3,Таблица!$A$2:$L$201,7) -> Паспорт: 98 03 № 345678 выдан Отделением УФМС России по Энской Республике в Энском районе 17 ноября 2007 г.
B36: ="Адрес: "&VLOOKUP($A$3,Таблица!$A$2:$L$201,8) -> Адрес: Энская Республика, г. Энск, ул. Ильича, 1, кв. 4
B37: ="ИНН "&VLOOKUP($A$3,Таблица!$A$2:$L$201,9) -> ИНН 202201234569
A38: =Данные!C12&" "&A3&" от "&Дата!F2&" года, "&Данные!C13&Дата!I2&" месяц "&Дата!J2&" года." -> Предъявляется для взыскания с расчетного счета Общества с ограниченной ответственностью «Управление» № 12345678998745632145, открытого в АКБ «БАНККРЕДИТПРОСТОМБАНК» ПАО удостоверение комиссии по трудовым спорам Общества с ограниченной ответственностью «Управление» № 3 от 24 июня 2017 года, на выплату заработной платы за май месяц 2017 года.
A39: =Данные!C14&FLOOR(VLOOKUP(A3,Таблица!A2:L201,11),1)&" "&VLOOKUP(A3,Таблица!A2:L201,12)&Данные!C15&VLOOKUP($A$3,Таблица!$A$2:$L$201,10)&Данные!C16 -> на сумму 7200 (Семь тысяч двести) рублей 00 коп. к списанию в мою пользу на лицевой счет № 00000000000000000003 в АКБ «БАНККРЕДИТПРОСТОМБАНК» ПАО.
B40: =Дата!B2 -> 2017-06-24
B41: =VLOOKUP($A$3,Таблица!$A$2:$L$201,2) -> Петров Пётр Петрович
B42: Фамилия Имя Отчество | C42: Подпись

Sheet 4
B2: Комиссия по трудовым спорам Общества с ограниченной ответственностью «Управление ЖКХ»
A3: =--RIGHTB(SUBSTITUTE(CELL("filename",D1),"]",REPT(" ",31)),31) -> 4
B4: =Дата!B2 -> 2017-06-24
A5: =Данные!B2&" "&Дата!A2&" от "&Дата!G2&" года "&Данные!B3&Дата!I2&" месяц "&Дата!J2&" года." -> Настоящее удостоверение выдано на основании Решения КТС Общества с ограниченной ответственностью «Управление» № 6 от 25 июня 2017 года о взыскании невыплаченной своевременно заработной платы за май месяц 2017 года.
A6: в пользу: | B6: =VLOOKUP(A3,Таблица!A2:L201,3) -> Борисова Бориса Борисовича
A7: в сумме: | B7: =FLOOR(VLOOKUP(A3,Таблица!A2:L201,11),1)&" "&VLOOKUP(A3,Таблица!A2:L201,12) -> 0 (Ноль) рублей 00 коп.
A8: Решение комиссии по трудовым спорам:
A9: =Данные!B4&" в пользу:" -> Взыскать с Общества с ограниченной ответственностью «Управление» юридический адрес: 444444, г. Энска, мкр. Стройка, д. 1, Банковские реквизиты: АКБ «БАНККРЕДИТПРОСТОМБАНК» ПАО г. Энска, р/счет 98765432100000123456, Кор. счет 98765432100000000123, ИНН 222004444, БИК 012345678 в пользу:
A10: =VLOOKUP($A$3,Таблица!$A$2:$L$201,3)&", дата рождения "&TEXT((VLOOKUP($A$3,Таблица!$A$2:$L$201,5)),"ДД.ММ.ГГГГ")&" года, "&"место рождения: "&VLOOKUP($A$3,Таблица!$A$2:$L$201,6)&", адрес: "&VLOOKUP(A3,Таблица!A2:L201,8)&Данные!B5&Дата!I2&" месяц "&Дата!J2&" года"&" в сумме: "&FLOOR(VLOOKUP(A3,Таблица!A2:L201,11),1)&" "&VLOOKUP(A3,Таблица!A2:L201,12) -> Борисова Бориса Борисовича, дата рождения 00.01.1900 года, место рождения: , адрес: , невыплаченную заработную плату за май месяц 2017 года в сумме: 0 (Ноль) рублей 00 коп.
B11: =Дата!D2 -> 2017-06-26
A12: =Данные!B6 -> Настоящее удостоверение имеет силу исполнительного листа и предъявляется к исполнению не позднее 3-х месяцев со следующего дня его выдачи.
A13: =Данные!B7 -> Налог на доходы физических лиц, налог в пенсионный фонд с указанной суммы удержаны.
B15: =Дата!B2 -> 2017-06-24
B16: Председатель КТС: | C16: =Данные!B8 -> Антонова А.П.
B17: Секретарь КТС: | C17: =Данные!B9 -> Гашуткина Г.И.
B31: АКБ «ЧУВАШКРЕДИТПРОМБАНК» ПАО
B32: Чувашская Республика, город Алатырь, улица Горшенина, 26
B33: БИК 04970625
B34: =VLOOKUP($A$3,Таблица!$A$2:$L$201,3) -> Борисова Бориса Борисовича
B35: ="Паспорт: "&VLOOKUP($A$3,Таблица!$A$2:$L$201,7) -> Паспорт:
B36: ="Адрес: "&VLOOKUP($A$3,Таблица!$A$2:$L$201,8) -> Адрес:
B37: ="ИНН "&VLOOKUP($A$3,Таблица!$A$2:$L$201,9) -> ИНН
A38: =Данные!C12&" "&A3&" от "&Дата!F2&" года, "&Данные!C13&Дата!I2&" месяц "&Дата!J2&" года." -> Предъявляется для взыскания с расчетного счета Общества с ограниченной ответственностью «Управление» № 12345678998745632145, открытого в АКБ «БАНККРЕДИТПРОСТОМБАНК» ПАО удостоверение комиссии по трудовым спорам Общества с ограниченной ответственностью «Управление» № 4 от 24 июня 2017 года, на выплату заработной платы за май месяц 2017 года.
A39: =Данные!C14&FLOOR(VLOOKUP(A3,Таблица!A2:L201,11),1)&" "&VLOOKUP(A3,Таблица!A2:L201,12)&Данные!C15&VLOOKUP($A$3,Таблица!$A$2:$L$201,10)&Данные!C16 -> на сумму 0 (Ноль) рублей 00 коп. к списанию в мою пользу на лицевой счет № в АКБ «БАНККРЕДИТПРОСТОМБАНК» ПАО.
B40: =Дата!B2 -> 2017-06-24
B41: =VLOOKUP($A$3,Таблица!$A$2:$L$201,2) -> Борисов Борис Борисович
B42: Фамилия Имя Отчество | C42: Подпись

Sheet Данные
B2: Настоящее удостоверение выдано на основании Решения КТС Общества с ограниченной ответственностью «Управление» № | C2: Рассмотрев на заседании заявления работников Общества с ограниченной ответственностью «Управление» от
B3: о взыскании невыплаченной своевременно заработной платы за | C3: о невыплате заработной платы за
B4: Взыскать с Общества с ограниченной ответственностью «Управление» юридический адрес: 444444, г. Энска, мкр. Стройка, д. 1, Банковские реквизиты: АКБ «БАНККРЕДИТПРОСТОМБАНК» ПАО г. Энска, р/счет 98765432100000123456, Кор. счет 98765432100000000123, ИНН 222004444, БИК 012345678 | C4: Заявители – работники Общества с ограниченной ответственностью «Управление» просят взыскать с администрации Общества с ограниченной ответственностью «Управление» заработную плату за
B5: , невыплаченную заработную плату за | C5: Факт невыплаты заработной платы подтверждается поданными заявлениями работников от
B6: Настоящее удостоверение имеет силу исполнительного листа и предъявляется к исполнению не позднее 3-х месяцев со следующего дня его выдачи. | C6: , а ее сумма прилагаемыми справками о причитающейся заработной плате.
B7: Налог на доходы физических лиц, налог в пенсионный фонд с указанной суммы удержаны. | C7: Выслушав стороны и исследовав документы, комиссия находит, что требования заявителей подлежать удовлетворению, так как в соответствии со ст. 136 Трудового кодекса РФ выплата заработной платы должна производиться не реже, чем каждые полмесяца.
A8: Председатель КТС: | B8: Антонова А.П. | C8: На основании изложенного, комиссия приняла единогласное решение удовлетворить требования заявителей о выплате заработной платы, и руководствуясь ст.ст. 383-395 Трудового кодекса РФ
A9: Секретарь КТС: | B9: Гашуткина Г.И. | C9: Взыскать с Общества с ограниченной ответственностью «Управление» в пользу работников ООО «Управление» заработную плату на общую сумму
C10: Настоящее удостоверение выдано на основании Решения КТС Общества с ограниченной ответственностью «Управление» №
C11: о взыскании невыплаченной своевременно заработной платы за
C12: Предъявляется для взыскания с расчетного счета Общества с ограниченной ответственностью «Управление» № 12345678998745632145, открытого в АКБ «БАНККРЕДИТПРОСТОМБАНК» ПАО удостоверение комиссии по трудовым спорам Общества с ограниченной ответственностью «Управление» №
C13: на выплату заработной платы за
C14: на сумму
C15: к списанию в мою пользу на лицевой счет №
C16: в АКБ «БАНККРЕДИТПРОСТОМБАНК» ПАО.
